bitfinex-derivatives/quotes_SOLF0:USTF0_20250924
["timestamp","ask_amount","ask_price","bid_price","bid_amount"]
[1758681616545,115.26,214.63,214.61,4.1919]
[1758681618954,122.54,214.63,214.61,4.1919]
[1758681619146,7.28,214.62,214.59,4.1923]
[1758681619849,115.26,214.63,214.59,4.1923]
[1758681620053,7.28,214.62,214.59,4.1923]
[1758681620252,115.26,214.63,214.6,4.192]
[1758681620552,122.54,214.63,214.58,9.1450057]
[1758681620752,115.26,214.63,214.59,4.1923]
[1758681620951,115.26,214.63,214.55,1.3250057]
[1758681621147,7.28,214.62,214.55,1.3250057]
[1758681621548,7.28,214.62,214.57,4.1927]
[1758681622253,119.4517,214.63,214.57,4.1927]
[1758681622454,7.28,214.62,214.57,4.1927]
[1758681622656,119.4517,214.63,214.57,4.1927]
[1758681623052,119.4517,214.63,214.55,1.3250057]
[1758681623255,7.28,214.62,214.55,1.3250057]
[1758681623853,7.28,214.62,214.59,4.1923]
[1758681624054,7.81,214.62,214.59,4.1923]
[1758681624455,115.26,214.63,214.59,4.1923]
[1758681624653,7.81,214.62,214.59,4.1923]
[1758681625152,115.26,214.63,214.59,4.1923]
[1758681625348,7.81,214.62,214.55,1.3250057]
[1758681626951,7.81,214.6,214.54,7.82]
[1758681627158,1.1654056,214.59,214.5,8.9050057]
[1758681627359,123.09,214.58,214.5,8.9050057]
[1758681627553,115.28,214.58,214.54,4.1932]
[1758681627861,7.81,214.57,214.54,4.1932]
[1758681628258,115.28,214.58,214.54,4.1932]
[1758681628755,7.81,214.57,214.52,4.1937]
[1758681628956,115.28,214.58,214.52,4.1937]
[1758681629160,7.81,214.57,214.5,74.1472057]
[1758681629357,7.81,214.6,214.51,65.2397]
[1758681629552,19.30548057,214.59,214.5,8.9050057]
[1758681629757,18.14,214.59,214.5,8.9050057]
[1758681630266,7.81,214.57,214.5,8.9050057]
[1758681630564,7.81,214.57,214.5,1.3250057]
[1758681630866,7.81,214.57,214.52,4.1937]
[1758681631166,7.81,214.57,214.5,1.3250057]
[1758681631363,7.81,214.55,214.5,1.3250057]
[1758681631560,7.81,214.55,214.5,4.194]
[1758681632162,7.81,214.53,214.5,4.194]
[1758681632963,4.1931,214.56,214.5,4.194]
[1758681633167,1.16578835,214.55,214.5,4.194]
[1758681633368,7.81,214.53,214.5,4.194]
[1758681634465,7.81,214.57,214.43,65.2615]
[1758681634669,49.2650057,214.58,214.45,1.3250057]
[1758681634670,7.81,214.54,214.45,1.3250057]
[1758681634870,1.16584852,214.53,214.45,1.3250057]
[1758681635066,1.16584852,214.53,214.48,4.1944]
[1758681635270,1.16584852,214.53,214.48,1.3250057]
[1758681635474,7.81,214.52,214.48,8.9050057]
[1758681636473,7.81,214.52,214.5,4.194]
[1758681637968,1.3250057,214.58,214.48,8.9050057]
[1758681638277,1.16583357,214.57,214.51,66.5645057]
[1758681638574,7.81,214.58,214.56,4.1928]
[1758681638775,1.16567435,214.57,214.52,7.58]
[1758681638980,7.81,214.56,214.52,7.58]
[1758681639678,7.81,214.6,214.48,7.58]
[1758681639869,7.81,214.58,214.49,1.3250057]
[1758681640072,1.16575951,214.57,214.49,1.3250057]
[1758681640673,1.16575951,214.57,214.51,4.1939]
[1758681640880,7.81,214.55,214.51,4.1939]
[1758681641074,7.81,214.58,214.51,4.1939]
[1758681641273,1.16576283,214.57,214.51,4.1939]
[1758681641581,1.16576283,214.56,214.51,4.1939]
[1758681641878,5.5174057,214.59,214.51,4.1939]
[1758681641879,7.81,214.58,214.51,4.1939]
[1758681642072,1.1657783,214.57,214.52,4.1936]
[1758681642280,7.81,214.55,214.52,4.1936]
[1758681642583,7.81,214.58,214.52,4.1936]
[1758681642780,1.1657783,214.57,214.52,4.1936]
[1758681642981,7.81,214.55,214.52,4.1936]
[1758681643276,7.81,214.58,214.52,4.1936]
[1758681643482,1.1657783,214.57,214.52,4.1936]
[1758681643781,7.81,214.55,214.53,4.1934]
[1758681643981,77.69,214.58,214.51,8.9050057]
[1758681644180,1.16576255,214.57,214.51,8.9050057]
[1758681644478,77.69,214.58,214.51,8.9050057]
[1758681644479,8.97576255,214.56,214.51,8.9050057]
[1758681644679,7.81,214.56,214.52,7.58]
[1758681645680,7.81,214.57,214.52,11.7737]
[1758681645880,77.69,214.58,214.52,11.7737]
[1758681646078,77.69,214.58,214.52,4.1937]
[1758681646079,7.81,214.56,214.52,4.1937]
[1758681646276,7.81,214.57,214.52,4.1937]
[1758681646478,7.81,214.55,214.52,4.1937]
[1758681646678,7.81,214.54,214.52,4.1937]
[1758681647977,7.81,214.54,214.5,4.1941]
[1758681648182,7.81,214.57,214.5,4.1941]
[1758681648378,1.16580263,214.56,214.5,4.1941]
[1758681648584,7.81,214.57,214.5,4.1941]
[1758681648882,1.16580263,214.56,214.5,4.1941]
[1758681649182,1.16581151,214.55,214.48,1.3250057]
[1758681649384,7.81,214.54,214.48,1.3250057]
[1758681649586,100.14,214.58,214.49,7.58]
[1758681649882,8.97581151,214.57,214.53,11.7734]
[1758681650180,1.16581151,214.56,214.53,11.7734]
[1758681650381,7.81,214.57,214.53,11.7734]
[1758681650581,1.16579389,214.56,214.53,11.7734]
[1758681650780,7.81,214.57,214.53,11.7734]
[1758681651082,8.97579389,214.56,214.53,11.7734]
[1758681651276,7.81,214.56,214.53,11.7734]
[1758681651882,7.81,214.56,214.54,4.1932]
[1758681652885,7.81,214.57,214.52,4.1937]
[1758681653086,7.81,214.55,214.52,4.1937]
[1758681653781,124.0150057,214.6,214.52,7.33]
[1758681653980,1.16573229,214.59,214.53,65.2338]
[1758681654181,7.41,214.6,214.54,7.33]
[1758681654583,1.16557309,214.59,214.55,7.33]
[1758681654782,352.48,214.66,214.55,65.2272]
[1758681654783,7.41,214.64,214.55,65.2272]
[1758681654980,1.16552379,214.63,214.61,4.1919]
[1758681655180,352.48,214.66,214.59,7.33]
[1758681655382,65.2405,214.51,214.41,3.91014839]
[1758681655582,7.41,214.45,214.38,7.33]
[1758681655777,1.3250057,214.44,214.38,7.33]
[1758681655981,4.51842837,214.44,214.38,7.33]
[1758681656182,4.51842837,214.43,214.38,7.33]
[1758681656382,4.51842837,214.42,214.38,7.33]
[1758681656586,4.51842837,214.41,214.38,7.33]
[1758681656788,12.9302057,214.45,214.38,7.33]
[1758681657084,3.43289425,214.44,214.38,8.6550057]
[1758681657291,8.7350057,214.55,214.43,7.33]
[1758681657585,8.7350057,214.55,214.44,1.3250057]
[1758681657787,12.9282057,214.55,214.45,7.33]
[1758681658384,12.9282057,214.55,214.45,11.5249]
[1758681658588,1.16598197,214.54,214.45,11.5249]
[1758681658793,12.9282057,214.55,214.45,11.5249]
[1758681658986,1.16599706,214.54,214.45,11.5249]
[1758681659187,12.9282057,214.55,214.45,11.5249]
[1758681659188,1.16601211,214.53,214.45,11.5249]
[1758681659387,4.1936,214.53,214.45,11.5249]
[1758681660984,8.7350057,214.55,214.45,11.5249]
[1758681661192,1.16605156,214.54,214.45,11.5249]
[1758681661389,1.16605156,214.53,214.45,11.5249]
[1758681661584,7.41,214.55,214.47,4.1946]
[1758681661792,117.4,214.56,214.48,7.33]
[1758681662591,1.3250057,214.57,214.48,7.33]
[1758681662894,1.3250057,214.57,214.49,4.1943]
[1758681666093,1.3250057,214.54,214.44,7.33]
[1758681667487,1.3250057,214.54,214.46,4.1949]
[1758681668996,11.603,214.56,214.46,7.64]
[1758681669294,3.87350717,214.55,214.46,7.64]
[1758681669494,3.87350717,214.54,214.46,7.64]
[1758681669794,3.87350717,214.53,214.47,4.1947]
[1758681669994,3.87350717,214.52,214.48,7.64]
[1758681670294,3.87630126,214.51,214.48,7.64]
[1758681670490,8.7350057,214.56,214.41,7.64]
[1758681670694,8.7350057,214.56,214.41,8.9650057]
[1758681670695,7.38,214.52,214.41,8.9650057]
[1758681670887,3.87630126,214.51,214.41,8.9650057]
[1758681671084,5.20130696,214.5,214.42,4.1955]
[1758681671289,3.87630126,214.49,214.42,4.1955]
[1758681671489,3.87630126,214.48,214.42,4.1955]
[1758681671695,1.3250057,214.5,214.42,4.1955]
[1758681671897,3.83161091,214.49,214.42,4.1955]
[1758681672096,3.83161091,214.48,214.42,4.1955]
[1758681672396,1.3250057,214.5,214.42,4.1955]
[1758681672599,3.83159508,214.49,214.42,4.1955]
[1758681672799,3.83159508,214.48,214.42,4.1955]
[1758681672996,1.3250057,214.5,214.42,4.1955]
[1758681673196,3.83159508,214.49,214.42,4.1955]
[1758681673392,3.83159508,214.48,214.42,4.1955]
[1758681673598,1.3250057,214.5,214.42,4.1955]
[1758681673798,3.83167338,214.49,214.42,4.1955]
[1758681673999,3.83167338,214.48,214.42,4.1955]
[1758681674200,5.5193057,214.5,214.41,8.9650057]
[1758681674500,11.21136256,214.49,214.41,8.9650057]
[1758681674689,3.83136256,214.48,214.41,8.9650057]
[1758681674890,3.83136256,214.47,214.41,8.9650057]
[1758681675093,7.38,214.49,214.41,13.1607057]
[1758681675403,3.83097207,214.48,214.41,8.9650057]
[1758681675702,3.83097207,214.47,214.43,4.1953]
[1758681675902,7.38,214.49,214.43,11.8353]
[1758681676102,3.83189894,214.48,214.44,7.64]
[1758681676297,7.38,214.49,214.45,4.1951]
[1758681676599,7.38,214.54,214.46,7.64]
[1758681676807,3.83218098,214.53,214.46,7.64]
[1758681676997,7.38,214.54,214.48,4.1944]
[1758681677201,7.38,214.54,214.46,7.64]
[1758681677408,117.02,214.55,214.48,7.64]
[1758681677709,1.3250057,214.54,214.48,7.64]
[1758681678105,1.3250057,214.54,214.48,11.8344]
[1758681678306,124.4,214.56,214.48,8.9650057]
[1758681678610,124.4,214.56,214.48,7.64]
[1758681680009,7.38,214.55,214.42,7.64]
[1758681680708,4.1937,214.53,214.42,7.64]
[1758681680914,7.38,214.52,214.42,7.64]
[1758681681519,11.5739,214.52,214.44,4.1951]
[1758681686211,7.8,214.49,214.42,7.64]
[1758681686413,7.8,214.53,214.42,7.64]
[1758681686613,116.84,214.52,214.42,7.64]
[1758681687712,124.68,214.53,214.42,7.64]
[1758681688016,124.68,214.53,214.46,4.1948]
[1758681688723,124.68,214.53,214.47,4.1946]
[1758681689011,7.8,214.57,214.47,7.3]
[1758681689316,124.6,214.57,214.5,4.1941]
[1758681691714,124.6,214.57,214.51,4.1938]
[1758681692214,1.16589682,214.56,214.51,4.1938]
[1758681692413,116.8,214.57,214.51,4.1938]
[1758681692414,7.8,214.54,214.51,4.1938]
[1758681692616,1.16589682,214.53,214.51,4.1938]
[1758681692916,1.16589682,214.52,214.51,4.1938]
[1758681694422,1.16589682,214.52,214.51,11.4938]
[1758681694716,124.6,214.57,214.51,11.4938]
[1758681694918,8.96583542,214.56,214.51,11.4938]
[1758681695118,1.16583542,214.55,214.51,11.4938]
[1758681695317,1.16583542,214.54,214.51,11.4938]
[1758681695520,352.58,214.59,214.46,65.2536]
[1758681695521,4.1923,214.6,214.54,4.1933]
[1758681695818,7.8,214.58,214.54,4.1933]
[1758681696015,7.8,214.56,214.54,4.1933]
[1758681696312,1.16575659,214.55,214.54,4.1933]
[1758681697722,1.16575659,214.55,214.52,11.4937]
[1758681698023,7.8,214.54,214.48,7.3]
[1758681698219,116.7,214.59,214.48,7.3]
[1758681698420,8.96583569,214.58,214.48,7.3]
[1758681698722,1.16583569,214.57,214.48,7.3]
[1758681698919,1.16583569,214.56,214.48,7.3]
[1758681699119,1.16583569,214.55,214.48,7.3]
[1758681699324,1.16583569,214.54,214.48,7.3]
[1758681699519,1.16583569,214.53,214.47,9.37259905]
[1758681699719,11.9927,214.58,214.47,9.37259905]
[1758681699924,1.16584443,214.57,214.47,9.37259905]
[1758681700227,7.8,214.55,214.51,4.1938]
[1758681700522,1.16584443,214.54,214.51,4.1938]
[1758681700721,1.16584443,214.53,214.51,4.1938]
[1758681700924,1.16584443,214.52,214.51,4.1938]
[1758681701226,7.8,214.55,214.51,4.1938]
[1758681701526,8.96584443,214.54,214.51,4.1938]
[1758681701820,1.16584443,214.53,214.51,4.1938]
[1758681702020,1.16584443,214.53,214.5,7.3]
[1758681702424,1.16584443,214.53,214.46,7.3]
[1758681702627,1.16584443,214.52,214.5,11.494]
[1758681702821,1.16584443,214.51,214.5,11.494]
[1758681703020,1.16584443,214.56,214.5,11.494]
[1758681703323,1.16584443,214.55,214.51,7.3]
[1758681703622,121.83262568,214.59,214.48,4.1945]
[1758681703623,8.96584443,214.54,214.48,4.1945]
[1758681703817,1.16584443,214.53,214.46,7.3]
[1758681704021,4.1931,214.56,214.46,7.3]
[1758681704022,1.16584443,214.52,214.46,7.3]
[1758681704320,1.16587525,214.51,214.5,4.194]
[1758681704525,1.16587525,214.51,214.5,11.494]
[1758681705229,1.16587511,214.51,214.5,11.494]
[1758681706430,7.8,214.57,214.51,4.1938]
[1758681706730,8.96587511,214.56,214.52,7.3]
[1758681706929,1.16587511,214.55,214.52,7.3]
[1758681707228,1.16587511,214.54,214.52,7.3]
[1758681707430,1.16587511,214.53,214.52,7.3]
[1758681707629,1.16587511,214.53,214.51,11.4938]
[1758681707830,1.16587511,214.52,214.51,11.4938]
[1758681708631,1.16587511,214.52,214.51,4.1938]
[1758681709127,11.9929,214.57,214.51,4.1938]
[1758681709331,7.8,214.55,214.51,4.1938]
[1758681709527,1.16586651,214.54,214.51,11.4938]
[1758681709832,1.16586651,214.53,214.51,11.4938]
[1758681710034,116.2,214.58,214.53,4.1935]
[1758681710235,1.16584889,214.57,214.53,4.1935]
[1758681710425,1.16584889,214.56,214.54,7.3]
[1758681710626,1.16584889,214.55,214.54,7.3]
[1758681711330,116.22,214.6,214.54,7.76]
[1758681711631,116.22,214.6,214.54,7.3]
[1758681712834,116.22,214.6,214.58,4.1926]
[1758681713035,116.22,214.6,214.58,11.4926]
[1758681713231,7.8,214.62,214.58,7.3]
[1758681714336,7.8,214.62,214.55,7.47]
[1758681715925,7.67,214.62,214.58,4.1924]
[1758681716233,116.26,214.63,214.55,7.47]
[1758681718038,7.67,214.62,214.58,11.6624]
[1758681720126,7.67,214.62,214.55,4.1932]
[1758681720330,7.67,214.62,214.49,7.47]
[1758681721536,7.67,214.57,214.49,7.47]
[1758681721739,116.12,214.56,214.49,7.47]
[1758681722840,116.12,214.56,214.5,4.1941]
[1758681723436,1.16576471,214.55,214.48,65.2488]
[1758681723636,1.16576471,214.54,214.49,7.47]
[1758681723832,7.67,214.59,214.49,7.47]
[1758681724037,1.16574707,214.58,214.51,7.47]
[1758681724242,1.16574707,214.57,214.51,7.47]
[1758681724438,1.16574707,214.56,214.5,7.47]
[1758681724638,7.67,214.59,214.53,11.6634]
[1758681724832,8.83566125,214.58,214.53,7.47]
[1758681725038,1.16566125,214.57,214.5,7.47]
[1758681725238,1.16566125,214.56,214.5,7.47]
[1758681725438,7.67,214.58,214.5,7.47]
[1758681725640,1.16563704,214.57,214.52,7.47]
[1758681725840,70.04,214.6,214.52,7.47]
[1758681725841,1.16563704,214.56,214.52,7.47]
[1758681726042,70.04,214.6,214.53,7.47]
[1758681726241,1.16562816,214.59,214.54,4.1933]
[1758681726444,1.16562816,214.58,214.51,7.47]
[1758681726645,1.16562816,214.57,214.51,7.47]
[1758681726846,1.16562816,214.56,214.51,7.47]
[1758681727046,70.04,214.6,214.51,7.47]
[1758681727343,1.16562816,214.59,214.51,7.47]
[1758681727534,1.16562816,214.58,214.51,7.47]
[1758681727740,1.16562816,214.57,214.51,7.47]
[1758681727939,1.16562816,214.56,214.55,11.343]
[1758681728545,2.816e-05,214.56,214.55,11.343]
[1758681728745,7.67,214.62,214.6,4.1922]
[1758681729644,8.48123609,214.62,214.6,4.1922]
[1758681730545,8.48123609,214.62,214.58,4.1925]
[1758681730748,8.48123609,214.62,214.58,11.3425]
[1758681730945,7.36,214.61,214.58,11.3425]
[1758681732141,7.36,214.61,214.56,4.1929]
[1758681732343,8.17123609,214.62,214.56,4.1929]
[1758681733449,7.36,214.61,214.57,4.1927]
[1758681733751,0.81123609,214.62,214.57,4.1927]
[1758681733951,7.36,214.61,214.57,4.1927]
[1758681734153,7.36,214.61,214.54,4.1932]
[1758681735052,7.36,214.59,214.54,4.1932]
[1758681735352,4.1922,214.6,214.54,4.1932]
[1758681735751,11.5522,214.6,214.54,4.1932]
[1758681738654,7.36,214.6,214.54,4.1932]
[1758681742163,7.36,214.61,214.55,7.15]
[1758681743864,7.36,214.61,214.57,11.3826]
[1758681744860,7.75,214.61,214.57,11.3826]
[1758681747664,7.75,214.61,214.58,11.3824]
[1758681748158,0.81123609,214.62,214.59,4.1922]
[1758681748462,0.81123609,214.62,214.56,1.32586209]
[1758681748663,0.81123609,214.62,214.57,7.19]
[1758681748865,0.81123609,214.62,214.61,7.19]
[1758681749766,0.81123609,214.62,214.6,4.192]
[1758681751867,0.81123609,214.62,214.6,11.382]
[1758681755068,0.81123609,214.62,214.6,7.19]
[1758681755268,7.75,214.61,214.58,11.3825]
[1758681755770,0.81123609,214.62,214.59,11.3823]
[1758681756156,0.81123609,214.62,214.56,1.32586209]
[1758681756367,7.75,214.61,214.54,7.19]
[1758681756776,7.75,214.61,214.55,4.1931]
[1758681760265,5.00303609,214.62,214.56,4.1928]
[1758681760569,12.75303609,214.62,214.55,7.19]
[1758681761161,8.56123609,214.62,214.56,7.19]
[1758681762573,8.56123609,214.62,214.57,4.1927]
[1758681762772,0.81123609,214.62,214.58,7.19]
[1758681762972,7.75,214.61,214.58,7.19]
[1758681765479,0.81123609,214.62,214.59,7.19]
[1758681766271,7.75,214.61,214.58,4.1924]
[1758681766976,0.81123609,214.62,214.59,11.3823]
[1758681767272,0.81123609,214.62,214.54,1.32586209]
[1758681767273,0.81123609,214.62,214.57,1.32586209]
[1758681767974,0.81123609,214.62,214.58,7.19]
[1758681768379,0.81123609,214.62,214.61,7.19]
[1758681768584,7.75,214.67,214.57,1.32586209]
[1758681768585,115.54,214.64,214.57,1.32586209]
[1758681768782,106.64635144,214.69,214.61,7.19]
[1758681768976,0.81108483,214.67,214.65,4.1911]
[1758681769178,115.54,214.69,214.64,1.32586209]
[1758681769580,115.54,214.69,214.65,7.19]
[1758681769977,115.54,214.69,214.64,1.32586209]
[1758681770182,115.54,214.69,214.65,7.19]
[1758681770476,115.54,214.69,214.64,1.32586209]
[1758681770885,115.54,214.69,214.67,4.1908]
[1758681771975,123.29,214.69,214.65,11.3812]
[1758681772174,7.75,214.68,214.65,4.1912]
[1758681772377,115.54,214.69,214.65,4.1912]
[1758681772579,8.56101867,214.68,214.6,1.32586209]
[1758681772878,8.56101867,214.68,214.58,8.51586209]
[1758681773584,4.1912,214.66,214.6,4.192]
[1758681773884,122.94,214.65,214.58,8.51586209]
[1758681774786,122.94,214.65,214.58,12.70836209]
[1758681775079,122.94,214.65,214.58,8.51586209]
[1758681775784,122.94,214.65,214.59,4.1922]
[1758681776089,122.94,214.65,214.58,8.51586209]
[1758681777789,115.52,214.65,214.61,4.1919]
[1758681777979,7.42,214.64,214.61,4.1919]
[1758681778384,7.42,214.64,214.61,11.9819]
[1758681778580,122.92,214.64,214.61,11.9819]
[1758681778890,7.42,214.64,214.61,11.9819]
[1758681779079,122.92,214.64,214.61,11.9819]
[1758681779283,7.42,214.64,214.61,11.9819]
[1758681779488,122.92,214.64,214.61,11.9819]
[1758681780090,115.5,214.64,214.61,4.1919]
[1758681780291,7.42,214.63,214.54,1.32586209]
[1758681781796,11.6117,214.63,214.56,4.1928]
[1758681783897,7.42,214.63,214.56,4.1928]
[1758681784395,11.6118,214.63,214.56,4.1928]
[1758681784593,7.42,214.6,214.5,1.32586209]
[1758681784791,115.5,214.59,214.51,7.79]
[1758681784992,115.5,214.59,214.54,4.1932]
[1758681785302,7.42,214.58,214.48,9.11586209]
[1758681786199,8.74586209,214.58,214.48,9.11586209]
[1758681787900,7.26,214.55,214.49,4.1943]
[1758681789400,12.77916209,214.55,214.47,4.1947]
[1758681790095,12.77916209,214.55,214.48,4.1944]
[1758681791599,12.77916209,214.55,214.49,7.76]
[1758681791600,8.58586209,214.55,214.49,7.76]
[1758681792606,122.76,214.55,214.49,7.76]
[1758681792905,122.76,214.55,214.51,7.76]
[1758681793107,8.58586209,214.6,214.5,7.76]
[1758681793302,50.9,214.59,214.5,7.76]
[1758681794804,50.9,214.59,214.54,4.1932]
[1758681795402,7.26,214.58,214.54,4.1932]
[1758681795608,50.9,214.59,214.54,4.1932]
[1758681795905,7.26,214.58,214.54,4.1932]
[1758681796301,50.9,214.59,214.54,4.1932]
[1758681796808,7.26,214.58,214.54,4.1932]
[1758681797607,50.9,214.59,214.54,4.1932]
[1758681798108,7.26,214.58,214.54,4.1932]
[1758681798509,50.9,214.59,214.54,4.1932]
[1758681798710,7.26,214.58,214.54,4.1932]
[1758681798906,50.9,214.59,214.54,4.1932]
[1758681799113,7.26,214.58,214.51,4.1938]
[1758681800313,7.26,214.58,214.5,7.76]
[1758681800616,7.26,214.58,214.52,4.1936]
[1758681801816,50.9,214.59,214.53,4.1934]
[1758681802118,50.9,214.59,214.53,11.9534]
[1758681802917,55.0925,214.59,214.53,4.1934]
[1758681803617,7.78,214.58,214.53,4.1934]
[1758681803917,4.1927,214.58,214.53,4.1934]
[1758681804413,7.78,214.57,214.53,4.1934]
[1758681804614,4.1927,214.58,214.53,4.1934]
[1758681805215,7.78,214.57,214.53,4.1934]
[1758681805417,4.1927,214.58,214.53,4.1934]
[1758681805711,7.78,214.57,214.53,11.4134]
[1758681805912,4.1927,214.58,214.53,11.4134]
[1758681806116,7.78,214.57,214.53,11.4134]
[1758681807216,4.1927,214.58,214.53,11.4134]
[1758681807817,7.78,214.57,214.53,11.4134]
[1758681810113,58.68,214.59,214.55,7.22]
[1758681810313,7.78,214.65,214.54,7.22]
[1758681810513,7.78,214.65,214.56,7.22]
[1758681810723,8.59101867,214.68,214.62,4.1917]
[1758681811018,12.78181867,214.68,214.62,4.1917]
[1758681812120,7.78,214.67,214.64,7.22]
[1758681814723,0.81101867,214.68,214.63,4.1915]
[1758681815824,7.78,214.67,214.63,11.4115]
[1758681816519,0.81101867,214.68,214.63,11.4115]
[1758681816723,7.78,214.67,214.61,4.1919]
[1758681817119,7.78,214.67,214.59,7.22]
[1758681818323,7.78,214.67,214.63,7.22]
[1758681818523,0.81101867,214.68,214.6,7.22]
[1758681819524,0.81101867,214.68,214.66,7.22]
[1758681820127,0.81101867,214.68,214.65,4.1911]
[1758681820328,8.59101867,214.68,214.63,7.22]
[1758681820627,0.81101867,214.68,214.63,7.22]
[1758681820828,7.78,214.67,214.63,7.22]
[1758681821527,7.78,214.67,214.64,7.22]
[1758681822128,7.78,214.67,214.61,11.412]
[1758681822827,7.78,214.67,214.62,4.1916]
[1758681823021,7.78,214.67,214.63,7.22]
[1758681823222,7.78,214.67,214.62,4.1916]
[1758681823625,7.78,214.67,214.63,7.22]
[1758681823821,8.59101867,214.68,214.64,7.22]
[1758681824220,8.59101867,214.68,214.63,4.1915]
[1758681824426,8.59101867,214.68,214.64,7.22]
[1758681826027,8.59101867,214.68,214.65,7.22]
[1758681826426,0.81101867,214.68,214.61,7.22]
[1758681827431,0.81101867,214.68,214.66,7.22]
[1758681829034,8.59101867,214.68,214.65,4.1911]
[1758681831337,8.59101867,214.68,214.63,4.1915]
[1758681831635,7.78,214.67,214.64,7.22]
[1758681833134,0.81101867,214.68,214.64,4.1913]
[1758681833339,0.81101867,214.68,214.65,7.22]
[1758681833738,8.57101867,214.68,214.65,7.22]
[1758681834441,0.81101867,214.68,214.66,7.65]
[1758681835945,8.57101867,214.68,214.66,7.65]
[1758681838548,0.81101867,214.68,214.66,7.65]
[1758681839749,0.81101867,214.68,214.66,11.8409]
[1758681840146,0.81101867,214.68,214.67,7.65]
[1758681841451,74.7,214.7,214.69,7.65]
[1758681841649,82.46,214.7,214.65,7.65]
[1758681841847,82.46,214.7,214.62,7.65]
[1758681842354,74.7,214.7,214.62,7.65]
[1758681842753,75.51099032,214.7,214.64,4.1913]
[1758681842955,75.51099032,214.7,214.62,7.65]
[1758681844747,7.76,214.69,214.55,7.65]
[1758681844954,7.76,214.69,214.56,7.65]
[1758681845149,4.1906,214.68,214.56,7.65]
[1758681845354,7.76,214.67,214.56,7.65]
[1758681846458,11.9509,214.67,214.62,4.1917]
[1758681846660,4.1909,214.67,214.62,4.1917]
[1758681846952,7.76,214.66,214.62,4.1917]
[1758681847152,4.1905,214.69,214.62,11.8417]
[1758681847359,7.76,214.68,214.62,11.8417]
[1758681848854,11.9507,214.68,214.62,11.8417]
[1758681851860,4.191,214.67,214.62,11.8417]
[1758681852061,7.38,214.66,214.62,4.1917]
[1758681852460,7.38,214.66,214.62,11.7717]
[1758681852652,7.38,214.66,214.63,7.58]
[1758681852855,7.38,214.66,214.63,11.7715]
[1758681854966,7.38,214.69,214.56,7.58]
[1758681855766,4.1911,214.66,214.59,4.1923]
[1758681855965,7.38,214.65,214.59,11.7723]
[1758681856165,7.38,214.65,214.59,7.58]
[1758681856568,7.38,214.65,214.61,7.58]
[1758681856768,4.1909,214.67,214.61,7.58]
[1758681856968,11.5709,214.67,214.61,7.58]
[1758681858167,11.5709,214.67,214.61,11.7719]
[1758681860166,4.1911,214.66,214.61,11.7719]
[1758681860370,4.1911,214.66,214.6,7.58]
[1758681863475,4.1911,214.66,214.6,11.7721]
[1758681866176,4.1911,214.66,214.61,4.1919]
[1758681866380,11.5711,214.66,214.61,4.1919]
[1758681866574,11.5711,214.66,214.62,7.35]
[1758681867276,11.5711,214.66,214.61,4.1919]
[1758681867481,7.38,214.66,214.62,4.1916]
[1758681867777,4.1907,214.68,214.63,7.35]
[1758681867977,119.4307,214.68,214.62,4.1916]